Cogmind - Beta 16 @@@ ROGUE MODE // 2026.01.06 @ 17:00:27 Player: chebyrekser Result: Destroyed by UG-3J0(g) with Salvaging Laser Performance ------------- Evolutions (2) 1000 Regions Visited (10) 2000 Robots Destroyed (236) 1180 Value Destroyed (5496) 5496 Prototype IDs (18) 360 Alien Tech Used (0) 0 Bonus (1275) 1275 TOTAL SCORE: 11311 Bonus ------- Follower Combat Kills 1092 Registered with UFD 300 Friendly Fire -117 Cogmind --------- Core Integrity 0/550 Matter 128/300 Energy 100/100 System Corruption 0% Temperature Cool (8) Movement Flying (29) Location -8/Scraptown Parts ------- > --- POWER (1) -------- (None) > --- PROPULSION (4) --- Improved VTOL Module Improved VTOL Module Improved VTOL Module > --- UTILITY (4) ------ Improved Propulsion Shielding Hacking Suite > --- WEAPON (2) ------- Missile Launcher > --- INVENTORY (5) ---- Light Fission Core Makeshift Sensor Array Shotgun CPS Tube (1) Flamer Peak State ------------ > --- POWER ------------ Improved Ion Engine > --- PROPULSION ------- Improved VTOL Module Improved VTOL Module Improved VTOL Module Improved VTOL Module > --- UTILITY ---------- Improved Heat Sink Huge Storage Unit Improved Light Armor Plating Hacking Suite > --- WEAPON ----------- Heavy Ion Cannon Great Maul > --- INVENTORY -------- Light Deuterium Engine Light Treads Armored Treads Armored Treads Advanced Treads Improved Medium Treads Combat Airjet Improved VTOL Module Medium Storage Unit Makeshift Sensor Array Improved Signal Interpreter Makeshift Terrain Scanner Seismic Detector ECM Suite Improved Propulsion Shielding Hacking Suite Hacking Suite System Shield Gauss Rifle Missile Launcher CPS Tube Deploy-a-Sentry Deploy-a-Sentry Deploy-a-Sentry [Rating: 44] Favorites ----------- Power Improved Ion Engine Engine Improved Ion Engine Power Core Light Fission Core Propulsion Light Treads Treads Light Treads Leg Improved Carbon-fiber Leg Wheel Compact Wheel Flight Unit Improved VTOL Module Utility Huge Storage Unit Device Improved Heat Sink Storage Huge Storage Unit Processor Terrain Scan Processor Hackware Hacking Suite Protection Improved Light Armor Plating Weapon Heavy Assault Rifle Energy Gun Medium Laser Energy Cannon Advanced Beam Cannon Ballistic Gun Heavy Assault Rifle Launcher Grenade Launcher Special Weapon Flamer Impact Weapon Great Maul Slashing Weapon Katana Build | -11 -10 -10 -9 -9 -9 -8 -8 -8 -8 -8 ------- Run | Yrd Mat Min Mat Min Exi Min Mat Sto Rec Scr Slots Evolved 4 | . . . 2 . . . 2 . . . Power . | . . . . . . . . . . . Propulsion 2 | . . . 1 . . . 1 . . . Utility 2 | . . . 1 . . . 1 . . . Weapon . | . . . . . . . . . . . Parts Attached 127 | 6 12 1 22 6 5 1 25 19 9 21 Power 10 | 1 . . 3 . . . 1 3 1 1 Engine 9 | 1 . . 3 . . . 1 3 1 . Core 1 | . . . . . . . . . . 1 Reactor . | . . . . . . . . . . . Propulsion 56 | 1 4 . 8 3 3 . 13 12 6 6 Treads 48 | 1 3 . 7 3 3 . 13 12 6 . Leg 1 | . . . . . . . . . . 1 Wheel 1 | . 1 . . . . . . . . . Hover . | . . . . . . . . . . . Flight 6 | . . . 1 . . . . . . 5 Utility 26 | 2 4 1 5 1 2 1 3 2 . 5 Device 10 | 1 1 1 1 . 2 . 1 1 . 2 Storage 5 | 1 3 . . . . . . . . 1 Processor 1 | . . . . . . 1 . . . . Hackware 3 | . . . . . . . 1 1 . 1 Protection 7 | . . . 4 1 . . 1 . . 1 Artifact . | . . . . . . . . . . . Weapon 35 | 2 4 . 6 2 . . 8 2 2 9 Energy Gun 1 | . . . . . . . . . . 1 Energy Cannon 8 | . 1 . 2 . . . 2 1 . 2 Ballistic Gun 15 | 2 2 . 3 . . . 5 1 1 1 Ballistic Cannon . | . . . . . . . . . . . Launcher 4 | . 1 . . 1 . . 1 . . 1 Special Weapon 4 | . . . 1 . . . . . . 3 Impact Weapon 2 | . . . . . . . . . 1 1 Slashing Weapon 1 | . . . . 1 . . . . . . Piercing Weapon . | . . . . . . . . . . . Special Melee Weapon . | . . . . . . . . . . . Unidentified Prototypes 4 | . . . 3 . . . 1 . . . Corrupted Parts 1 | . . . . . . . . 1 . . System Corruption 6 | . . . . . . . . 6 . . Parts Lost 9 | . . . . . . . 4 1 1 3 Power . | . . . . . . . . . . . Propulsion . | . . . . . . . . . . . Utility 5 | . . . . . . . 2 1 . 2 Weapon 4 | . . . . . . . 2 . 1 1 Highest Loss Streak 3 | . . . . . . . 3 1 1 3 To Critical Strikes . | . . . . . . . . . . . Average Backups 18 | 5 11 22 24 25 22 22 21 21 21 14 Power 1 | . 1 2 2 2 2 2 2 1 1 . Propulsion 5 | 3 4 6 7 9 7 7 7 8 7 3 Utility 7 | . 4 7 8 8 7 8 6 8 9 7 Weapon 3 | . 2 6 6 6 5 5 4 4 3 1 Tool/Special . | . . . . . . . . . . . Unused Backups 121 | 1 4 . 14 . 2 . 3 3 . 94 Power 19 | . . . 3 . . . 1 . . 15 Propulsion 31 | 1 2 . 3 . 1 . . 2 . 22 Utility 52 | . 1 . 4 . 1 . 1 . . 45 Weapon 19 | . 1 . 4 . . . 1 1 . 12 Tool/Special . | . . . . . . . . . . . Average Slot Usage (%) 98 | . 98 99 96 100 99 100 97 99 99 97 Engine 9 | . 14 14 10 11 11 11 9 8 9 6 Treads 24 | . 25 14 30 33 33 33 34 36 35 14 Flight 8 | . . . . . . . . . . 21 Device 7 | . 13 13 4 8 7 7 10 14 9 4 Storage 9 | . 14 14 11 11 11 11 9 9 9 8 Hackware 6 | . . . . . . . 8 4 9 11 Protection 10 | . . . 14 13 14 14 5 7 9 11 Energy Cannon 5 | . . 14 4 . . . 7 8 8 4 Ballistic Gun 8 | . 27 14 16 14 11 11 9 8 8 2 Impact Weapon 3 | . . . . . . . . . . 8 Slashing Weapon 1 | . . . . 6 11 11 1 . . . Peak Build Rating 44 | 6 9 11 22 21 28 23 31 33 38 44 Average Rating 29 | 4 8 9 18 20 23 22 28 30 34 38 On Entrance 18 | . 6 9 11 20 20 22 22 31 31 34 Avg Prop Armor Cover (%) 12 | . 14 13 11 . . . . . . . Naked Turns . | . . . . . . . . . . . Heaviest Build 106 | 14 90 90 106 104 101 103 102 100 99 104 Greatest Support 83 | 20 40 16 60 60 60 60 83 83 82 82 Greatest Overweight (x) 6 | 1 5 5 6 1 1 1 1 1 1 5 Average Overweight (x) 1 | . . 5 1 1 1 1 1 1 1 1 Largest Inventory Capacity 25 | 8 25 25 25 25 25 25 25 25 25 25 Average Capacity 22 | 7 13 25 25 25 25 25 25 25 25 20 Most Carried 25 | 8 20 25 25 25 25 25 25 25 25 25 Average Carried 21 | 5 11 22 24 25 24 25 24 24 24 18 Final Capacity 25 | 8 25 25 25 25 25 25 25 25 25 5 Final Carried 25 | 8 20 25 25 25 25 25 25 25 25 5 Class Distribution -------------------- 41% | Scavenger-Mutant 34% | Mutant 13% | Commander-Mutant 6% | Hacker-Mutant 3% | Hacker-Sprinter Dominant Class ---------------- Mutant | -10/Materials Mutant | -10/Mines Mutant | -9/Materials Scavenger-Mutant | -9/Mines Commander-Mutant | -9/Exiles Scavenger-Mutant | -8/Mines Scavenger-Mutant | -8/Materials Scavenger-Mutant | -8/Storage Commander-Mutant | -8/Recycling Mutant | -8/Scraptown Resources | -11 -10 -10 -9 -9 -9 -8 -8 -8 -8 -8 ----------- Run | Yrd Mat Min Mat Min Exi Min Mat Sto Rec Scr Matter Collected 5241 | 304 447 69 925 324 102 81 683 913 375 1018 Remotely . | . . . . . . . . . . . Salvage Created 9168 | 150 739 298 1453 509 167 202 1249 1824 1260 1317 Parts 534 | 12 58 20 98 27 9 18 73 122 53 44 Haulers Intercepted 15 | . 2 . 4 . . . 4 5 . . Recyclers Shooed 10 | . 4 . 1 . . . . 2 3 . Parts Field Recycled . | . . . . . . . . . . . Retrieved Matter . | . . . . . . . . . . . Parts Self-Destructed . | . . . . . . . . . . . Prevented . | . . . . . . . . . . . Parts Restored . | . . . . . . . . . . . Kills | -11 -10 -10 -9 -9 -9 -8 -8 -8 -8 -8 ------- Run | Yrd Mat Min Mat Min Exi Min Mat Sto Rec Scr Combat Hostiles Destroyed 138 | . 16 4 25 10 . 4 14 28 14 23 Melee 2 | . . . . 1 . 1 . . . . Guns 39 | . 6 2 13 4 . . 4 7 3 . Cannons 38 | . . 2 6 . . . 8 17 5 . AOE 56 | . 10 . 5 5 . 3 2 4 5 22 Classes Destroyed 22 | 2 6 1 2 1 . 1 1 . 2 6 Worker 16 | . . 2 2 1 . . 4 3 1 3 Builder 4 | . . . . . . 1 . 2 1 . Tunneler 11 | 4 . 1 1 1 . 2 1 . 1 . Hauler 15 | . 2 . 4 . . . 4 5 . . Recycler 28 | 1 2 2 3 1 . 1 1 5 10 2 Mechanic 1 | . 1 . . . . . . . . . Operator 6 | . 3 . 1 . . . . 2 . . Watcher 12 | . 3 . 4 . . . 3 2 . . Swarmer 35 | . 9 3 7 . . 4 . 9 2 1 Grunt 42 | . 7 1 13 8 . . 3 8 1 1 Brawler 2 | . . . . 1 . . 1 . . . Duelist 4 | . . . 1 1 . . 1 . 1 . Sentry 29 | . . . 5 . . . 7 11 6 . Demolisher 1 | . . . . . . . . . 1 . Hunter 5 | . . . . . . . 3 . 1 1 Programmer 2 | . . . . . . . . . 2 . Bolteater 1 | . . . . . . . . . . 1 Explorer 2 | . . . . . . . . . . 2 Ranger 1 | . . . . . . . . . . 1 Guru 7 | . . . . . . . . . . 7 Scrapper 12 | . . . . . . . . . . 12 Tinkerer 1 | . . . . . . . . . . 1 Best Kill Streak 22 | 4 9 3 7 3 . 3 2 7 14 22 Combat Bots Only 22 | . 5 3 7 3 . 3 2 4 6 22 Max Kills in Single Turn 6 | 1 3 1 2 3 . 3 2 2 5 6 Gunslinging . | . . . . . . . . . . . Exploded 6 | . 3 . 2 3 . 3 2 2 3 6 Melee 1 | . . . . 1 . 1 . . . . Uniques/NPCs Destroyed 2 | . . . . . . . . . . 2 Triborg (-8/Scraptown) Optimus (-8/Scraptown) Combat | -11 -10 -10 -9 -9 -9 -8 -8 -8 -8 -8 -------- Run | Yrd Mat Min Mat Min Exi Min Mat Sto Rec Scr Hostile Shots Fired 534 | . 45 15 121 27 . 18 80 125 65 38 Missed 148 | . 11 3 27 12 . 5 19 38 20 13 Hits 386 | . 34 12 94 15 . 13 61 87 45 25 Melee 12 | . . . . 2 . . 3 . 2 5 Projectile 374 | . 34 12 94 13 . 13 58 87 43 20 AOE 13 | . . . . . . . . . 13 . Critical Strikes 17 | . . 1 6 . . 1 3 3 3 . Damage Taken 5848 | . 420 101 1173 248 . 165 998 1274 1024 445 Core 788 | . 59 12 137 . . 26 91 141 140 182 Absorbed by Shields . | . . . . . . . . . . . Redirected to Shielding 51 | . . . . . . . . . . 51 Regen/Repaired (Parts) 582 | . 45 . 155 . . . 137 245 . . Core Remaining (%) 76 | 100 . 71 . . . 59 . . . . Volleys Fired 490 | 11 70 17 117 19 . 1 81 102 48 24 Largest 2 | 2 2 2 2 2 . 1 2 2 2 2 Hottest 123 | 40 50 80 100 46 . 33 91 91 96 123 Shots Fired 913 | 22 136 34 215 34 . 1 160 194 92 25 Gun 584 | 22 131 17 154 31 . . 90 94 44 1 Cannon 282 | . . 17 50 . . . 69 94 45 7 Launcher 36 | . 5 . 4 3 . 1 1 6 3 13 Special 11 | . . . 7 . . . . . . 4 Kinetic 584 | 22 131 17 154 31 . . 90 94 44 1 Thermal 290 | . . 17 57 . . . 69 94 45 8 Explosive 36 | . 5 . 4 3 . 1 1 6 3 13 Electromagnetic . | . . . . . . . . . . . Robot Hit Streak 26 | 3 26 10 15 7 . . 13 15 15 4 Robot Miss Streak 8 | 1 2 4 4 3 . . 8 3 3 1 Penetration Max . | . . . . . . . . . . . Secondary Targets 2 | . . . 1 1 . . . . . . Max Gunslinging Chain 1 | . . . 1 1 . . . . . . Shots Hit Robots 615 | 12 101 19 135 23 4 8 103 132 56 22 Core Hits 355 | 7 51 11 65 18 4 6 41 61 39 52 Critical Kills 3 | . . . 1 . . . . 1 1 . Critical Parts Destroyed 6 | . 2 . 1 . . . . . . 3 Critical Strikes 11 | . 2 . 2 . . 1 . 1 2 3 Meltdown 3 | . . . 1 . . . . 1 1 . Destroy 4 | . 2 . 1 . . . . . 1 . Smash 3 | . . . . . . . . . . 3 Sever 1 | . . . . . . 1 . . . . Melee Attacks 58 | . . . . 10 4 12 6 4 . 22 Impact 22 | . . . . . . . . . . 22 Slashing 36 | . . . . 10 4 12 6 4 . . Piercing . | . . . . . . . . . . . Sneak Attacks 18 | . . . . 1 . 5 2 1 . 9 Combat Hostiles . | . . . . . . . . . . . Follow-up Attacks . | . . . . . . . . . . . Damage Inflicted 16878 | 130 1378 294 2326 757 260 529 2079 3126 2114 3885 Guns 5125 | 130 965 69 1316 321 . . 824 1003 489 8 Cannons 4057 | . . 225 686 . . . 958 1469 719 . Explosions 5768 | . 413 . 324 327 . 110 174 578 906 2936 Melee 1919 | . . . . 109 260 419 123 76 . 932 Ramming . | . . . . . . . . . . . Kinetic 5125 | 130 965 69 1316 321 . . 824 1003 489 8 Thermal 4066 | . . 225 686 . . . 958 1469 719 9 Explosive 5768 | . 413 . 324 327 . 110 174 578 906 2936 Electromagnetic . | . . . . . . . . . . . Impact 932 | . . . . . . . . . . 932 Slashing 987 | . . . . 109 260 419 123 76 . . Piercing . | . . . . . . . . . . . Highest Corruption 8 | . . . 3 3 3 . . 6 8 8 Average Corruption 4 | . . . 2 3 2 . . 6 7 8 Corruption Purged 3 | . . . . . 3 . . . . . Corruption Blocked . | . . . . . . . . . . . Effects 141 | . . . 28 23 15 . . 8 67 . Message Errors 39 | . . . 7 9 4 . . 1 18 . Matter Fused 36 | . . . 11 7 4 . . 2 12 . Heat Flow Errors 19 | . . . 3 1 2 . . 1 12 . Energy Discharges 20 | . . . 2 4 3 . . 1 10 . Parts Fused 4 | . . . 1 . 1 . . . 2 . Data Loss (minor) 15 | . . . 2 . 1 . . 3 9 . Data Loss (major) 3 | . . . 2 . . . . . 1 . Misfires 1 | . . . . . . . . . 1 . Alerts 2 | . . . . 1 . . . . 1 . Weapon Failures 2 | . . . . 1 . . . . 1 . Overload Shots . | . . . . . . . . . . . Overflow Damage 1216 | . 2 . 20 . . 86 58 131 87 832 Projectiles 105 | . . . . . . . 15 3 40 47 Explosions 294 | . 2 . 20 . . 27 . 68 47 130 Melee 817 | . . . . . . 59 43 60 . 655 Knockbacks 3 | . . . . . . . . . . 3 Impact 2 | . . . . . . . . . . 2 Kinetic . | . . . . . . . . . . . Secondary 1 | . . . . . . . . . . 1 Self-Inflicted Damage 265 | . 61 . 34 49 . . . 70 . 51 Shots 10 | . 2 . 1 1 . . . 4 . 2 Rammed . | . . . . . . . . . . . Targets Rammed . | . . . . . . . . . . . Kicked . | . . . . . . . . . . . Crushed . | . . . . . . . . . . . Highest Temperature 282 | . 12 118 273 107 282 4 81 73 261 159 Average Temperature 70 | . 7 44 85 34 120 3 25 6 86 60 Received Heat Transfer 1743 | . 126 18 537 81 . . 297 441 63 180 Effects 4 | . . . 3 . . . . . 1 . Energy Bleed 1 | . . . 1 . . . . . . . Interference 3 | . . . 2 . . . . . 1 . Siege Activations . | . . . . . . . . . . . Martial Activations . | . . . . . . . . . . . Shielding Activations . | . . . . . . . . . . . Robots Disrupted . | . . . . . . . . . . . Combat Hostiles . | . . . . . . . . . . . Robots Corrupted 3 | . . . . . . . . . . 3 Combat Hostiles 1 | . . . . . . . . . . 1 Parts Fried 7 | . . . . . . . . . . 7 Impact Corruptions 20 | . . . . . . . . . . 20 Robots Melted 3 | . . . 1 . . . . 1 1 . Combat Hostiles 2 | . . . 1 . . . . . 1 . Parts Melted 16 | . . . 3 . . . 5 5 2 1 Heat Transferred 7508 | . . 481 1332 . . . 1739 2627 1249 80 Parts Sabotaged . | . . . . . . . . . . . Parts Stolen 1 | . . . . . . . . . . 1 Parts Stripped . | . . . . . . . . . . . Power Chain Reactions . | . . . . . . . . . . . Alert | -11 -10 -10 -9 -9 -9 -8 -8 -8 -8 -8 ------- Run | Yrd Mat Min Mat Min Exi Min Mat Sto Rec Scr Maximum Alert Level 2 | . 1 . 2 1 . . . 1 1 . Low Security (%) 80 | 100 96 100 22 97 . 100 100 91 83 . Level 1 19 | . 3 . 76 2 . . . 8 16 . Level 2 . | . . . . . . . . . . . Level 3 . | . . . . . . . . . . . Level 4 . | . . . . . . . . . . . Level 5 . | . . . . . . . . . . . High Security . | . . . . . . . . . . . Max Security . | . . . . . . . . . . . Peak Influence 401 | 10 212 70 401 210 . 162 74 210 240 . Initial 130 | . . 22 . 130 . . . 16 78 . Average 110 | 2 94 7 276 58 . 31 21 125 121 . Influence Increases 4303 | 25 501 125 1030 274 6 232 584 976 550 . Destroy 0b10 Robot/C 2480 | . 320 80 560 200 . 140 320 560 300 . Destroy 0b10 Robot/NC 470 | 25 55 25 90 15 5 20 65 95 75 . Destroy Leader 616 | . 80 20 168 30 . 20 124 174 . . Allied During Kill 79 | . . . 41 . 1 30 6 . 1 . Successful Hack 86 | . 13 . 3 5 . . 25 17 23 . Select Force Hacks 120 | . . . 30 . . . . . 90 . Disable Machine 60 | . . . . . . . 15 45 . . Destroy Structure 197 | . 33 . 33 24 . 7 14 70 16 . Lose Combat Pursuer 195 | . . . 105 . . 15 15 15 45 . Influence Decreases 4303 | 25 442 184 694 549 67 232 545 815 692 58 Entered New Map 507 | . . 37 . 206 61 . . 23 122 58 Time Decay 3523 | 25 442 147 654 343 6 212 502 632 560 . Lost Part 43 | . . . . . . . 23 10 10 . Lost Ally 60 | . . . 40 . . 20 . . . . Purge Threat 170 | . . . . . . . 20 150 . . Squads Dispatched 17 | . 4 1 3 . . . 1 8 . . Investigation 5 | . 1 1 1 . . . . 2 . . Extermination . | . . . . . . . . . . . Reinforcement 6 | . 3 . 2 . . . 1 . . . Assault . | . . . . . . . . . . . Garrison 6 | . . . . . . . . 6 . . Intercept . | . . . . . . . . . . . Searches Triggered . | . . . . . . . . . . . Construction Impeded 1 | . . . . . . . 1 . . . Haulers Reinforced . | . . . . . . . . . . . Active Scanning Responses . | . . . . . . . . . . . Cargo Convoy Interrupts . | . . . . . . . . . . . Stealth | -11 -10 -10 -9 -9 -9 -8 -8 -8 -8 -8 --------- Run | Yrd Mat Min Mat Min Exi Min Mat Sto Rec Scr Distress Signals 11 | . 3 . 3 . . . 3 2 . . Communications Jammed . | . . . . . . . . . . . Distress Signals . | . . . . . . . . . . . Times Spotted 231 | . 35 5 43 10 . 7 28 33 14 56 Peak Tracking Total 20 | . 6 3 7 3 . 4 4 5 5 20 Tactical Retreats 11 | . . . 4 . . 1 1 1 3 1 Traps | -11 -10 -10 -9 -9 -9 -8 -8 -8 -8 -8 ------- Run | Yrd Mat Min Mat Min Exi Min Mat Sto Rec Scr Traps Triggered 6 | . 1 . 2 . . . . 3 . . Indirectly . | . . . . . . . . . . . Trap Hack Attempts . | . . . . . . . . . . . Triggered . | . . . . . . . . . . . Disarmed . | . . . . . . . . . . . Reprogrammed . | . . . . . . . . . . . Reused 1 | . . . . . . . . . . 1 Traps Extracted . | . . . . . . . . . . . Installed 1 | . . . . . . . . . . 1 Triggered . | . . . . . . . . . . . Most Traps Carried 3 | . . . . . . . . . . 3 Machines | -11 -10 -10 -9 -9 -9 -8 -8 -8 -8 -8 ---------- Run | Yrd Mat Min Mat Min Exi Min Mat Sto Rec Scr Machines Disabled 12 | . . . . . . . 1 3 . 8 Max in Single Turn 1 | . . . . . . . 1 1 . 1 Garrison Access 2 | . . . . . . . 1 1 . . Machines Repaired . | . . . . . . . . . . . Machines Dismantled . | . . . . . . . . . . . Machines Sabotaged . | . . . . . . . . . . . Overloaded Fab Kills . | . . . . . . . . . . . Hacking | -11 -10 -10 -9 -9 -9 -8 -8 -8 -8 -8 --------- Run | Yrd Mat Min Mat Min Exi Min Mat Sto Rec Scr Machines Accessed 52 | . 7 1 7 1 . . 13 11 9 3 Terminals 29 | . 4 . 3 1 . . 9 6 6 . Fabricators . | . . . . . . . . . . . Repair Stations 5 | . 1 . 1 . . . 1 2 . . Recycling Units 9 | . 2 . 1 . . . 1 2 3 . Scanalyzers 3 | . . . 2 . . . 1 . . . Garrison Access 2 | . . . . . . . 1 1 . . Total Hacks 149 | . 12 1 20 5 . . 42 30 29 10 Successful 111 | . 9 1 15 3 . . 31 24 18 10 Failed 37 | . 3 . 4 2 . . 11 6 11 . Catastrophic 5 | . 1 . . . . . 2 1 1 . Database Lockouts 1 | . . . 1 . . . . . . . Manual 84 | . 10 . 5 4 1 . 24 16 24 . Terminals 92 | . 8 . 6 5 . . 29 21 23 . Fabricators . | . . . . . . . . . . . Repair Stations 19 | . 2 . 4 . . . 7 6 . . Recycling Units 14 | . 2 . 3 . . . 1 2 6 . Scanalyzers 9 | . . . 7 . . . 2 . . . Garrison Access 4 | . . . . . . . 3 1 . . Terminal Hacks 39 | . 1 1 1 2 . . 9 9 6 10 Record 4 | . . . . 1 . . . . . 3 Part Schematic 3 | . . . . . . . 1 . 2 . Robot Analysis 9 | . . . . . . . 1 . 2 6 Prototype ID Bank 3 | . . . . . . . 1 1 1 . Open Door 3 | . . 1 . . . . . 2 . . Terminal Index 4 | . 1 . . . . . 1 1 1 . Alert Level 1 | . . . . . . . . 1 . . Unreport Threat 2 | . . . . . . . 1 1 . . Locate Traps 2 | . . . . . . . 1 1 . . Maintenance Status 2 | . . . . . . . 1 1 . . Hauler Manifests 1 | . . . 1 . . . . . . . Zone Layout 4 | . . . . 1 . . 2 1 . . Proto ID Catalog 1 | . . . . . . . . . . 1 Fabricator Hacks . | . . . . . . . . . . . Repair Station Hacks 18 | . 2 . 4 . . . 6 6 . . Scan Component 9 | . 1 . 2 . . . 3 3 . . Repair 9 | . 1 . 2 . . . 3 3 . . Recycling Unit Hacks 7 | . 1 . 1 . . . 1 2 2 . Retrieve Components 7 | . 1 . 1 . . . 1 2 2 . Scanalyzer 8 | . . . 6 . . . 2 . . . Insert Component 3 | . . . 2 . . . 1 . . . Analyze 3 | . . . 2 . . . 1 . . . Retrieve Study 2 | . . . 2 . . . . . . . Garrison Access Hacks 2 | . . . . . . . 1 1 . . Seal Access 2 | . . . . . . . 1 1 . . Unauthorized Hacks 37 | . 5 . 3 1 . . 12 6 10 . Terminals 33 | . 5 . 2 1 . . 12 6 7 . Assimilate 2 | . . . . . . . 2 . . . Botnet 11 | . 2 . 1 1 . . 3 2 2 . Disrupt 1 | . . . . . . . 1 . . . Operators 2 | . . . . . . . 1 1 . . Skim 17 | . 3 . 1 . . . 5 3 5 . Fabricators . | . . . . . . . . . . . Repair Stations . | . . . . . . . . . . . Recycling Units 4 | . . . 1 . . . . . 3 . Tunnel 4 | . . . 1 . . . . . 3 . Scanalyzers . | . . . . . . . . . . . Garrison Access . | . . . . . . . . . . . Data Cores Recovered 2 | . 1 . 1 . . . . . . . Used . | . . . . . . . . . . . Hacking Detections 38 | . 5 . 6 1 . . 10 8 8 . Full Trace Events 2 | . . . . . . . . 1 1 . Feedback Events . | . . . . . . . . . . . Feedback Blocked . | . . . . . . . . . . . Robot Schematics Acquired . | . . . . . . . . . . . Robots Built . | . . . . . . . . . . . Authchips . | . . . . . . . . . . . Time . | . . . . . . . . . . . Total Robot Build Rating . | . . . . . . . . . . . Part Schematics Acquired 6 | . . . 1 . . . 2 . 2 1 Parts Built . | . . . . . . . . . . . Authchips . | . . . . . . . . . . . Time . | . . . . . . . . . . . Total Part Build Rating . | . . . . . . . . . . . Part Studies Acquired 2 | . . . 2 . . . . . . . Parts Repaired 9 | . 1 . 2 . . . 3 3 . . Time 337 | . 26 . 83 . . . 126 102 . . Parts Recycled . | . . . . . . . . . . . Recycled Matter . | . . . . . . . . . . . Retrieved Matter . | . . . . . . . . . . . Retrieved Components 58 | . . . 10 . . . 9 20 19 . Parts Scanalyzed 2 | . . . 1 . . . 1 . . . Part Schematics Acquired 2 | . . . 1 . . . 1 . . . Parts Damaged 1 | . . . 1 . . . . . . . Bothacking | -11 -10 -10 -9 -9 -9 -8 -8 -8 -8 -8 ------------ Run | Yrd Mat Min Mat Min Exi Min Mat Sto Rec Scr Used RIF Installer . | . . . . . . . . . . . Robots Hacked . | . . . . . . . . . . . Non-combat . | . . . . . . . . . . . Combat . | . . . . . . . . . . . Robot Hacks Applied . | . . . . . . . . . . . Relay Couplers Released 2 | . . . . . . . . 2 . . Machine Destruction 2 | . . . . . . . . 2 . . Fabnet Peak Effective % . | . . . . . . . . . . . Robots Rewired 14 | . . . . . 5 . . . 9 . Allies Hacked . | . . . . . . . . . . . Hacks Repelled . | . . . . . . . . . . . Allies | -11 -10 -10 -9 -9 -9 -8 -8 -8 -8 -8 -------- Run | Yrd Mat Min Mat Min Exi Min Mat Sto Rec Scr Total Allies 18 | . . 3 . . 5 . . . 9 1 Largest Group 9 | . . 3 3 . 5 5 3 . 9 9 Highest-Rated Group 101 | . . 40 40 . 66 66 50 . 86 101 Highest-Rated Ally 91 | . . 16 16 . 21 21 21 . 21 91 Total Orders 55 | . . . 7 . . . . . 3 45 STAY 28 | . . . 3 . . . . . 2 23 FOLLOW 27 | . . . 4 . . . . . 1 22 Ally Attacks 203 | . . . 47 . . 15 12 . 5 124 Total Damage 7177 | . . . 403 . . 176 301 . 45 6252 Kills 47 | . . . 6 . . 4 2 . 1 34 Allies Corrupted 1 | . . . . . . . . . . 1 Allies Melted 2 | . . . . . . . . . . 2 Turrets Deployed 3 | . . . . . . . . . . 3 Intel | -11 -10 -10 -9 -9 -9 -8 -8 -8 -8 -8 ------- Run | Yrd Mat Min Mat Min Exi Min Mat Sto Rec Scr Active Infowar (turns) 9806 | 37 1575 1205 1384 1020 940 623 1172 1295 . 555 Sensors 1051 | . . . . . 497 . . . . 554 Seismic 8754 | 37 1575 1205 1384 1020 443 623 1172 1295 . . ECM 1 | . . . . . . . . . . 1 Robot Analysis Total 9 | . . . . . . . 1 . 2 6 Derelict Logs Recovered 5 | . . 3 . 2 . . . . . . Drone Launches . | . . . . . . . . . . . Drone Recoveries . | . . . . . . . . . . . Exploration | -11 -10 -10 -9 -9 -9 -8 -8 -8 -8 -8 ------------- Run | Yrd Mat Min Mat Min Exi Min Mat Sto Rec Scr Turns Passed 28833 | 135 1597 1256 3065 1338 1933 928 2889 2201 2011 11480 Spaces Moved 14123 | 56 658 672 1163 604 925 440 1153 770 710 6972 Core 4 | 4 . . . . . . . . . . Treads 8193 | 52 600 . 1019 604 925 440 1153 770 710 1920 Legs . | . . . . . . . . . . . Wheels 874 | . 58 672 144 . . . . . . . Hover . | . . . . . . . . . . . Flight 5052 | . . . . . . . . . . 5052 Fastest Speed 26 | 50 160 175 165 200 200 200 200 200 200 26 Average Speed 171 | 154 161 175 201 200 200 200 202 205 216 145 Slowest Speed 376 | 160 175 175 240 200 200 200 210 210 231 376 Overloaded Moves . | . . . . . . . . . . . Propulsion Burnouts . | . . . . . . . . . . . Robots Hopped 4 | . . . . . . . . . . 4 Potential Cave-ins . | . . . . . . . . . . . Cave-ins Triggered . | . . . . . . . . . . . Exploration Rate (%) 80 | 5 94 96 70 89 90 92 76 91 89 88 Regions Visited 10 Branch Regions 7 Pre-discovered Areas 7 | . . 1 1 . . . 2 . 3 . Known Exits Taken 1 | . . . 1 . . . . . . . Unknown Exits Taken 9 | 1 1 1 . 1 1 1 1 1 1 . Scrap Searched 11 | . . 2 . 2 . 1 . . . 6 Spaces Dug 113 | . 7 . 10 15 . 8 4 68 . 1 Terrain Destroyed 262 | . 31 . 33 37 . 8 12 81 23 37 Melee 8 | . . . . . . . 4 3 . 1 Projectile 12 | . . . 7 . . . . . 1 4 AOE 242 | . 31 . 26 37 . 8 8 78 22 32 Terrain Rammed . | . . . . . . . . . . . Walls Destroyed . | . . . . . . . . . . . Machines Disabled . | . . . . . . . . . . . Actions | -11 -10 -10 -9 -9 -9 -8 -8 -8 -8 -8 --------- Run | Yrd Mat Min Mat Min Exi Min Mat Sto Rec Scr Total 17882 | 82 1077 722 1681 683 1005 468 1548 1188 1093 8335 Wait 2245 | . 297 23 290 32 4 8 228 223 205 935 Move 14105 | 55 657 671 1162 603 924 439 1152 769 709 6964 Hop 4 | . . . . . . . . . . 4 Pick Up 234 | 9 18 5 26 . 5 . 16 6 4 145 Fast Attach 46 | 6 2 . 6 . 2 2 3 10 1 14 Attach 26 | . 1 2 5 . . . 6 1 1 10 Detach 11 | . . 2 4 . . . . . . 5 Swap 195 | . 18 2 32 15 5 4 33 43 11 32 Drop 307 | 1 14 . 39 4 8 2 23 28 9 179 Fire 490 | 11 70 17 117 19 . 1 81 102 48 24 Melee 58 | . . . . 10 4 12 6 4 . 22 Ram . | . . . . . . . . . . . Kick . | . . . . . . . . . . . Crush . | . . . . . . . . . . . Escape Stasis 2 | . . . . . . . . 2 . . Rewire 158 | . . . . . 53 . . . 105 . Trap 1 | . . . . . . . . . . 1 Miscellaneous . | . . . . . . . . . . . Route ------- -11/Scrapyard -10/Materials (discovered 4 exits: *Mat x2 / *Min x2) -10/Mines (discovered 2 exits: *Mat x2) -9/Materials (discovered 3 exits: *Mat / *Min x2) -9/Mines (discovered 3 exits: *Mat x2 / *Exi) -9/Exiles (discovered 2 exits: [*Min x2]) -8/Mines (discovered 2 exits: *Mat x2) -8/Materials (discovered 5 exits: *Fac x3 / *Sto x2) -8/Storage -8/Recycling (discovered 2 exits: *Fac / *Scr) -8/Scraptown (discovered 2 exits: *Fac x2) History --------- Turn | Location | Event 35 | -11/Scrapyard | Discovered new exit (range 15) 136 | -11/Scrapyard | Entered Materials 317 | -10/Materials | Build established: Mutant 402 | -10/Materials | Discovered new exit (range 10) 789 | -10/Materials | Discovered new exit (range 12) 1322 | -10/Materials | Discovered new exit (range 9) 1465 | -10/Materials | Discovered new exit (range 10) 1704 | -10/Materials | Repaired Lgt. Treads 1733 | -10/Materials | Entered Mines 1737 | -10/Mines | Met a Derelict bent on vengeance 2060 | -10/Mines | Learned 4 Materials zone layouts 2060 | -10/Mines | Discovered new exit (range 8) 2182 | -10/Mines | Learned Materials security intel 2243 | -10/Mines | Discovered new exit (range 11) 2453 | -10/Mines | Learned location of Mines (-9) 2511 | -10/Mines | A weapon hastily lodged in a ceiling crevice suddenly fell to the ground 2627 | -10/Mines | Met a Derelict shopkeep closing up shop 2852 | -10/Mines | Assisted by bots powering up and referring to "LRC-V3" 2989 | -10/Mines | Entered Materials 2989 | -9/Materials | Accompanied by 3 allies 2989 | -9/Materials | Evolved 2 slots: Propulsion x1, Utility x1 2990 | -9/Materials | Identified exit to Mines 3172 | -9/Materials | Destroyed 7 combat bots 3692 | -9/Materials | Discovered new exit (range 13) 3809 | -9/Materials | Central database locked down 3980 | -9/Materials | Discovered exit to Mines (range 13) 5353 | -9/Materials | Repaired Hvy. Ion Engine 5386 | -9/Materials | Repaired Hvy. Assault Rifle 6054 | -9/Materials | Entered Mines 6104 | -9/Mines | Discovered new exit (range 9) 6259 | -9/Mines | Excavation squad dispatched 6259 | -9/Mines | A large section of the Mines collapsed 6325 | -9/Mines | Learned Materials emergency access door positions 6333 | -9/Mines | Learned location of 1 exit from Lower Caves 6529 | -9/Mines | Discovered new exit (range 11) 6552 | -9/Mines | Build established: Scavenger-Mutant 6555 | -9/Mines | Joined a pair of Derelicts in attacking an 0b10 outpost 7310 | -9/Mines | Deemed a non-threat by the Exiles lab entrance 7310 | -9/Mines | Discovered new exit (range 5) 7392 | -9/Mines | Entered Exiles 7392 | -9/Exiles | Found Exiles lab destroyed 7602 | -9/Exiles | Opened EX-Vault 7613 | -9/Exiles | Found Deploy-a-Sentry 7619 | -9/Exiles | Found Deploy-a-Sentry 7623 | -9/Exiles | Found Deploy-a-Sentry 8261 | -9/Exiles | Discovered new exit (range 14) 8601 | -9/Exiles | Build established: Commander-Mutant 8852 | -9/Exiles | Discovered new exit (range 15) 9325 | -9/Exiles | Entered Mines 9325 | -8/Mines | Accompanied by 5 allies 9355 | -8/Mines | Discovered new exit (range 7) 9708 | -8/Mines | Build established: Scavenger-Mutant 9834 | -8/Mines | Discovered new exit (range 12) 10253 | -8/Mines | Entered Materials 10253 | -8/Materials | Accompanied by 3 allies 10253 | -8/Materials | Evolved 2 slots: Propulsion x1, Utility x1 10360 | -8/Materials | Discovered new exit (range 10) 10660 | -8/Materials | Lost 3 parts (2u1w) 10719 | -8/Materials | Discovered new exit (range 15) 10952 | -8/Materials | Discovered new exit (range 13) 11340 | -8/Materials | Learned location of Zion (-6) 11404 | -8/Materials | Identified exit to Factory 11573 | -8/Materials | Learned 2 Lower Caves zone layouts 11628 | -8/Materials | Learned 2 Lower Caves zone layouts 11636 | -8/Materials | Repaired Imp. Light Armor Plating? 11837 | -8/Materials | Repaired Gauss Rifle 11882 | -8/Materials | Repaired Gauss Rifle 12213 | -8/Materials | Discovered exit to Factory (range 16) 13142 | -8/Materials | Entered Storage 13582 | -8/Storage | Repaired Imp. Light Armor Plating 13964 | -8/Storage | Garrison activated, responded to threat 14347 | -8/Storage | Garrison activated, responded to threat 15089 | -8/Storage | Repaired Imp. Light Armor Plating? 15124 | -8/Storage | Repaired Seismic Detector 15335 | -8/Storage | Used back door to open Recycling access 15335 | -8/Storage | Discovered new exit (range 5) 15343 | -8/Storage | Entered Recycling 15449 | -8/Recycling | Scanned before Scraplab entrance 15869 | -8/Recycling | Discovered new exit (range 8) 15930 | -8/Recycling | Core integrity fell below 50% 16555 | -8/Recycling | Build established: Commander-Mutant 16963 | -8/Recycling | Learned location of 1 exit from Storage 17105 | -8/Recycling | Learned Factory scanalyzer intel 17207 | -8/Recycling | Learned Factory stockpile data 17326 | -8/Recycling | Entered Scraplab 17345 | -8/Recycling | Discovered new exit (range 3) 17354 | -8/Recycling | Entered Scraptown 17354 | -8/Scraptown | Accompanied by 9 allies 17355 | -8/Scraptown | Identified exit to Factory 17359 | -8/Scraptown | System corruption cleaned by C-Scrubber 17590 | -8/Scraptown | Visited Fellowship of the Rings 17616 | -8/Scraptown | Visited The Evicted 17627 | -8/Scraptown | Heard Great Nut preacher, LISTEN AND RECITE! 17646 | -8/Scraptown | Visited Cyclists 17664 | -8/Scraptown | Visited Assassins FH 17694 | -8/Scraptown | Visited Spacefarers 17719 | -8/Scraptown | Visited IN-MT5's Study 17880 | -8/Scraptown | Visited SPCMW 19728 | -8/Scraptown | Build established: Mutant 20109 | -8/Scraptown | Visited UFD Registry 20109 | -8/Scraptown | Registered with UFD as "Metashaft" 20183 | -8/Scraptown | Visited Analyses Database 20240 | -8/Scraptown | Visited Science Guys 20277 | -8/Scraptown | Visited Botcube Research 20307 | -8/Scraptown | Build established: Scavenger-Mutant 20330 | -8/Scraptown | Visited Chapter 10 20360 | -8/Scraptown | Visited Abandonware Association 20384 | -8/Scraptown | Learned abandonware demo "MELTYB.EXE" 20432 | -8/Scraptown | Visited DA-N13 Charitable Foundation 20457 | -8/Scraptown | Found DCF Scrap (27 items) 20497 | -8/Scraptown | Visited Observation Area 20698 | -8/Scraptown | Visited Junk Repository 20810 | -8/Scraptown | Visited Junk Repository 21247 | -8/Scraptown | Found Lrg. Botcube 21420 | -8/Scraptown | Found Scrap Suit 22756 | -8/Scraptown | Build established: Mutant 24982 | -8/Scraptown | Lrg. Botcube activated 25018 | -8/Scraptown | Lrg. Botcube completed mutation into treaded form, armed with 4 guns. 26268 | -8/Scraptown | Build established: Hacker-Mutant 26739 | -8/Scraptown | Entered Cyclist Reading Room 28072 | -8/Scraptown | Warned about trapping Scraptown 28096 | -8/Scraptown | DAS Turret deployed 28096 | -8/Scraptown | DAS Turret deployed 28096 | -8/Scraptown | DAS Turret deployed 28106 | -8/Scraptown | Attacked by Scraptown defenders 28129 | -8/Scraptown | Build established: Hacker-Sprinter 28256 | -8/Scraptown | Found Scrap Suit 28264 | -8/Scraptown | Found Scrap Suit 28278 | -8/Scraptown | Attached CPS modules to *Dallas. 28282 | -8/Scraptown | Attached CPS modules to Triborg. 28287 | -8/Scraptown | Allies destroyed Triborg 28318 | -8/Scraptown | Found Tri-treads 28327 | -8/Scraptown | Found Prototype Ballistic Cannon 28345 | -8/Scraptown | Found PL-3XN's Ring of Power 28348 | -8/Scraptown | Found Siege Articulator 28368 | -8/Scraptown | Found Tri-treads 28401 | -8/Scraptown | Found Siege Articulator 28403 | -8/Scraptown | Found Siege Articulator 28447 | -8/Scraptown | Found Scrap Suit 28448 | -8/Scraptown | Found Scrap Suit 28479 | -8/Scraptown | Found Scrap Suit 28781 | -8/Scraptown | Attached CPS modules to Optimus. 28822 | -8/Scraptown | Core integrity fell below 20% 28825 | -8/Scraptown | Allies destroyed Optimus 28834 | -8/Scraptown | Destroyed by UG-3J0(g) with Salvaging Laser Last Messages --------------- 28824_ DAS Turret destroyed. 28824_ 1Y-0TL(j) destroyed. 28824_ 2K-19P(j) destroyed. 28824_ 4S-1OE(j) destroyed. 28824_ IJ-R6X(j) destroyed. 28825_ Optimus knocked back. 28825_ CPS modules swiftly deploy to protect Optimus components. 28825_ Optimus: "We are 0bPrime!" 28825_ Optimus destroyed. 28826_ DAS Turret suffers critical hit (Burn). 28827_ DAS Turret critical meltdown. 28828_ Unknown Processor melted. 28828_ 96-RZD(j) destroyed. 28828_ QO-Q5A(j) destroyed. 28829_ 0B-MX5(E) suffers critical hit (Blast). 28829_ 0B-MX5(E) destroyed. 28832_ The unstable cave ceiling collapses. 28833_ LH-Z9D(j) destroyed. 28833_ 2P-657(j) destroyed. Map ----- +----------------------------------------------------+ | | | | | | | | | | | | | | | ?????????????????????????????????????????????????? | | ???#########?????????????????????????????????????? | | ???#"" ##????????????????????????????????????? | | ???#" < ######################???????????????? | | ????"" #?#"""""""""#"""""""""#???????????????? | | ???????# #?#" !*=!!!"#"=! ! *"##??????????????? | | ???????# #?#" * !*[ !]"" / ;##?????????????? | | ???????# # " !! [!"#"* ! #?????????????? | | ???????# =*# = ! # = ##?#???????????? | | ??????##=*!# !!=[* !! & # # #???????????? | | ####### # !%! !%!=!== #???????????? | | ! %%=%%!= [%[!*!*%!!%t ####???????????? | | =* %[%%/=% %%!=!!%[= % #??????????????? | | [==! !%!%%%jg=[!!=%!!=!== % #??????????????? | | ####### %[[% ==! % =%=] ] #####??????????????? | | ??????##%% ##### !![*!/!! #?????????????????? | | ?###???# ! ###### =! ""###?????????????????? | | ?? ??# """"""""## "!&&"""#???????????????????? | | ?### ### " ""###"==@ ""#???????????????????? | | ?#"" """ "#?#"""""""#???????????????????? | | ?#" """ " "#?#########???????????????????? | | ##" """"" "#?????????????????????????????? | | ?#" ##"""#""##??????######????????????????? | | ?#" "" " ########"##???## ??????????????? | | ?#" " ##""""""""##??# """""" ?????????????? | | ?#"""""" ##" " " #??# "" "" #?????????#### | | ?####### ##" "###??# " " #?????????#""" | | ???????# ##"" * " #??# " " #?????????#" X | | ######## ##""" " #??# " " ??????????#" | | ##"" " #??# " " ??????????#"" | | ##" " #??# "" "" #?????????# | | ######## ##" """#??# """""" #?????????# | | ??????# ## #???# #??????????#### | | ?????### ### ############ ##########???????##### | | ###### #???????#"""" | | """ # #???????#" | | # #???????#" | | # #???????#" | | "" # #???????#" | | "" # ################# #???#####" | | "" # #???????????????# #???#"""" | | "" # #???????????????# #???#"""" | | "" # #######?????????# #???#"""" | +----------------------------------------------------+ Best States ------------- Heat Dissipation 45 Energy Generation 18 Energy Capacity 280 Matter Stores 300 Matter Capacity 300 Sight Range 16 Robot Scan Range 19 Terrain Scan Density 10 Armor Coverage 375 Propulsion Shielding 66 Evasion (%) 64 Recoil Reduction 4 Offensive Hacking 10 Defensive Hacking 10 Item Schematics ----------------- Plasma Flamer | -9/Materials | Scanalyzed Imp. Propulsion Shielding | -8/Materials | Hacked Imp. VTOL Module | -8/Materials | Scanalyzed Imp. Medium Armor Plating | -8/Recycling | Hacked Transport Network Coupler | -8/Recycling | Hacked IN-MT5's Pitchfork "Insurrection" | -8/Scraptown | Archive Robot Schematics ------------------ None Fabricated ------------ Nothing Repaired ---------- Lgt. Treads | 67% | -10/Materials Hvy. Ion Engine | 17% | -9/Materials Hvy. Assault Rifle | 44% | -9/Materials Imp. Light Armor Plating | 76% | -8/Materials Gauss Rifle | 67% | -8/Materials Gauss Rifle | 65% | -8/Materials Imp. Light Armor Plating | 57% | -8/Storage Imp. Light Armor Plating | 13% | -8/Storage Seismic Detector | 30% | -8/Storage Studied --------- Com. Wheel | -9/Materials | Hacked Lgt. Treads | -9/Materials | Hacked Alien Tech Used ----------------- None Achievements -------------- None Challenges ------------ None Game ------ Seed ShadingDynamicImmobilizer Manual? 0 Play Time 03:08:14 Cumulative 314.5 hours Start 2026.01.05 @ 16:41:13 End 2026.01.06 @ 17:00:27 Sessions 3 Manual Loads 0 Difficulty Rogue Special Mode None Game No. 87 Rogue 81 Adventurer 0 Explorer 6 Win Type - Total 18 Types 8/1/3/1/1/0/2/1/0/1 Lore% 87 Gallery% 77 Achievement% 68 Wizard Run 0 Options --------- Layout 1 ASCII 0 Keyboard 0 Movement Mouse Keybinds 0 Fullscreen 2 Font 24/Smallcaps Map View 50x35 Zoom Use 0% Tactical HUD 1 Map Filters NONE Filters NONE Steam 1 RUN: 5b977214-2f8d-481a-95fa-08f1756a7094